bitfinex-derivatives/quotes_BNBF0:USTF0_20250509
["timestamp","ask_amount","ask_price","bid_price","bid_amount"]
[1746805519177,0.26611446,635.0,633.52,0.31569642]
[1746805520677,0.27426302,635.01,633.52,0.31569642]
[1746805521072,0.26612374,635.0,633.52,0.31569642]
[1746805522879,0.26612374,635.0,633.53,0.28976505]
[1746805523179,0.26612374,635.0,633.52,0.31569642]
[1746805523780,0.27429977,634.99,633.52,0.31569642]
[1746805524178,0.26612374,634.98,633.52,0.31569642]
[1746805526185,0.27429977,634.99,633.52,0.31569642]
[1746805526484,0.374,635.28,633.52,0.31569642]
[1746805526686,0.54041183,634.98,633.53,0.28974065]
[1746805526882,0.54041183,634.98,633.55,0.31568147]
[1746805527183,0.26613368,634.97,633.55,0.31568147]
[1746805527485,0.26613368,635.27,633.55,0.31568147]
[1746805528284,0.2742922,635.26,633.55,0.31568147]
[1746805528478,0.26613368,635.25,633.55,0.31568147]
[1746805532789,0.374,635.28,633.55,0.31568147]
[1746805532790,0.27428139,635.24,633.55,0.31568147]
[1746805533088,0.26597383,635.23,633.55,0.31568147]
[1746805534191,0.519,635.22,633.55,0.31568147]
[1746805534790,0.26597383,635.21,633.55,0.31568147]
[1746805535893,0.27428571,635.2,633.55,0.31568147]
[1746805536392,0.26597383,635.19,633.55,0.31568147]
[1746805537394,0.26597383,635.19,633.56,0.28971288]
[1746805538294,0.26597383,635.19,633.55,0.31568147]
[1746805538692,0.26597383,635.21,633.55,0.31568147]
[1746805538898,0.27430085,635.18,633.55,0.31568147]
[1746805539092,0.26597383,635.17,633.55,0.31568147]
[1746805541690,0.27431274,635.16,633.55,0.31568147]
[1746805542187,0.26591815,635.15,633.55,0.31568147]
[1746805542492,0.27431274,635.16,633.55,0.31568147]
[1746805542793,0.26593254,635.15,633.55,0.31568147]
[1746805544793,0.27433436,635.14,633.55,0.31568147]
[1746805545190,0.26593254,635.13,633.55,0.31568147]
[1746805546094,0.374,635.12,633.55,0.31568147]
[1746805546494,0.26593254,635.11,633.55,0.31568147]
[1746805547791,0.27434734,635.1,633.55,0.86868147]
[1746805547991,0.26593254,635.09,633.55,0.86868147]
[1746805548197,0.27434734,635.1,633.55,0.86868147]
[1746805548598,0.26584151,635.09,633.55,0.86868147]
[1746805548791,0.93484151,635.09,633.55,0.86868147]
[1746805549201,0.26584151,635.08,633.55,0.86868147]
[1746805550996,0.669,635.09,633.55,0.86868147]
[1746805551301,0.26582642,635.08,633.55,0.86868147]
[1746805553397,0.26582642,635.07,633.55,0.86868147]
[1746805553803,0.26582642,635.06,633.55,0.86868147]
[1746805554206,0.26582642,635.05,633.55,0.86868147]
[1746805554504,0.26582642,635.04,633.55,0.86868147]
[1746805554906,0.26582642,635.06,633.55,0.86868147]
[1746805556709,0.27445985,635.05,633.55,0.86868147]
[1746805557309,0.26582642,635.04,633.55,0.86868147]
[1746805557604,0.26582642,635.03,633.55,0.86868147]
[1746805557905,0.26582642,635.04,633.55,0.86868147]
[1746805558109,0.26582642,635.03,633.55,0.86868147]
[1746805558409,0.26582642,635.02,633.55,0.86868147]
[1746805558711,0.26582642,635.01,633.55,0.86868147]
[1746805559014,0.27445985,635.05,633.55,0.86868147]
[1746805559015,0.26582642,635.04,633.55,0.86868147]
[1746805559811,0.27434085,635.03,633.55,0.86868147]
[1746805560205,0.26582642,635.02,633.55,0.86868147]
[1746805563011,0.27434085,635.01,633.55,0.86868147]
[1746805563205,0.54016727,635.01,633.55,0.86868147]
[1746805563408,0.26582642,635.0,633.55,0.86868147]
[1746805565710,0.2743268,634.99,633.55,0.86868147]
[1746805566115,0.26582642,634.98,633.55,0.86868147]
[1746805567018,0.2743268,634.99,633.55,0.86868147]
[1746805567318,0.26560482,634.98,633.55,0.86868147]
[1746805569820,0.26560482,634.98,633.56,0.28978488]
[1746805570217,0.665,634.97,633.56,0.28978488]
[1746805570519,0.26560482,634.96,633.56,0.28978488]
[1746805572119,0.27433436,634.95,633.56,0.28978488]
[1746805572313,0.27433436,634.95,633.55,0.86868147]
[1746805572519,0.26560482,634.94,633.55,0.86868147]
[1746805573019,0.64060482,634.94,633.55,0.86868147]
[1746805573218,0.64060482,634.94,633.56,0.28979199]
[1746805573412,0.26560482,634.93,633.56,0.28979199]
[1746805574820,0.27432247,634.92,633.56,0.28979199]
[1746805575120,0.27432247,634.92,633.55,0.86868147]
[1746805575621,0.26576513,634.91,633.56,0.28978216]
[1746805577918,0.26576513,634.93,633.56,0.28978216]
[1746805579118,0.26576513,634.93,633.55,1.14298664]
[1746805579622,0.26576513,634.93,633.56,0.28972501]
[1746805580525,0.375,634.94,633.55,0.58998664]
[1746805580926,0.26589578,634.93,633.56,0.28971176]
[1746805582325,0.26589578,634.93,633.56,0.76871176]
[1746805582825,0.26589578,634.93,633.57,0.28971176]
[1746805585124,0.26589578,634.93,633.56,0.479]
[1746805587130,0.27431598,634.92,633.56,0.479]
[1746805589229,0.26589578,634.93,633.56,0.479]
[1746805589435,0.74189578,634.91,633.57,0.28975614]
[1746805589728,0.26589578,634.9,633.57,0.28975614]
[1746805593937,0.476,634.91,633.56,0.75327382]
[1746805594237,0.26555914,634.9,633.57,0.28967109]
[1746805595444,0.476,634.91,633.57,0.28967109]
[1746805595846,0.476,634.91,633.56,0.75326302]
[1746805596042,0.476,634.91,633.58,0.28967707]
[1746805596344,0.476,634.91,633.57,0.28967707]
[1746805599146,0.26553982,634.9,633.57,0.28967707]
[1746805599344,0.26553982,634.9,633.56,0.75330193]
[1746805605953,0.26553982,634.9,633.56,0.479]
[1746805606450,0.375,634.89,633.56,0.479]
[1746805606654,0.26553982,634.88,633.56,0.479]
[1746805609455,0.27442306,634.87,633.56,0.479]
[1746805610154,0.26553982,634.86,633.56,0.479]
[1746805610850,0.2744447,634.85,633.56,0.479]
[1746805611054,0.26553982,634.84,633.56,0.479]
[1746805613957,0.26553982,634.88,633.56,0.479]
[1746805614959,0.27437546,634.87,633.56,0.479]
[1746805615359,0.26553982,634.86,633.56,0.479]
[1746805615657,0.26553982,634.85,633.56,0.479]
[1746805616054,0.26553982,634.84,633.56,0.479]
[1746805616657,0.26553982,634.86,633.57,0.28983227]
[1746805616860,0.26553982,634.83,633.57,0.28983227]
[1746805617454,0.26553982,634.86,633.57,0.28983227]
[1746805617657,0.27437546,634.87,633.56,0.479]
[1746805618354,0.26606815,634.86,633.56,0.479]
[1746805619862,0.27436897,634.85,633.56,0.479]
[1746805620461,0.26606815,634.84,633.56,0.479]
[1746805621754,0.573,634.83,633.56,0.479]
[1746805622658,0.26606815,634.82,633.56,0.479]
[1746805625261,0.26606815,634.82,633.57,0.28978737]
[1746805625860,0.573,634.83,633.55,0.31568147]
[1746805627564,0.573,634.83,633.55,0.74368147]
[1746805629165,0.26663449,634.82,633.55,0.74368147]
[1746805632369,0.573,634.83,633.55,0.74368147]
[1746805632866,0.26649293,634.82,633.55,0.74368147]
[1746805634970,0.27440467,634.81,633.55,0.74368147]
[1746805635471,0.26649293,634.8,633.55,0.74368147]
[1746805638367,0.375,634.79,633.55,0.74368147]
[1746805639075,0.26649293,634.78,633.55,0.74368147]
[1746805641069,0.27441549,634.77,633.55,0.74368147]
[1746805641473,0.26649293,634.76,633.55,0.74368147]
[1746805643772,0.27439926,634.75,633.55,0.74368147]
[1746805644173,0.26649293,634.74,633.55,0.74368147]
[1746805649874,0.27443172,634.73,633.55,0.74368147]
[1746805650069,0.26649293,634.72,633.55,0.74368147]
[1746805650475,0.796,634.71,633.55,0.74368147]
[1746805651277,0.26649293,634.7,633.55,0.74368147]
[1746805651876,0.796,634.71,633.55,0.74368147]
[1746805652178,0.26586683,634.7,633.55,0.74368147]
[1746805652776,0.27447284,634.69,633.55,0.74368147]
[1746805653275,0.26586683,634.68,633.55,0.74368147]
[1746805654677,0.26586683,634.67,633.55,0.74368147]
[1746805654871,0.26586683,634.66,633.55,0.74368147]
[1746805655276,0.26586683,634.65,633.55,0.74368147]
[1746805655477,0.26586683,634.64,633.55,0.74368147]
[1746805656278,0.26586683,634.63,633.55,0.74368147]
[1746805656479,0.26586683,634.62,633.55,0.74368147]
[1746805656673,0.26586683,634.61,633.55,0.74368147]
[1746805656979,0.26586683,634.6,633.55,0.74368147]
[1746805657380,0.26586683,634.59,633.55,0.74368147]
[1746805657677,0.26586683,634.58,633.55,0.74368147]
[1746805657982,0.26586683,634.57,633.55,0.74368147]
[1746805658281,0.26586683,634.56,633.55,0.74368147]
[1746805658678,0.26586683,634.55,633.55,0.74368147]
[1746805658875,0.54038731,634.55,633.55,0.74368147]
[1746805659081,0.26586683,634.54,633.55,0.74368147]
[1746805659477,0.26586683,634.53,633.55,0.74368147]
[1746805659781,0.26586683,634.52,633.55,0.74368147]
[1746805660282,0.26586683,634.51,633.55,0.74368147]
[1746805660479,0.26586683,634.5,633.55,0.74368147]
[1746805660984,0.26586683,634.49,633.55,0.74368147]
[1746805661284,0.27452048,634.55,633.55,0.74368147]
[1746805661285,0.26586683,634.48,633.55,0.74368147]
[1746805661685,0.26586683,634.47,633.55,0.74368147]
[1746805661888,0.26586683,634.46,633.55,0.74368147]
[1746805662282,0.26586683,634.45,633.55,0.74368147]
[1746805662689,0.26586683,634.44,633.55,0.74368147]
[1746805663287,0.26586683,634.43,633.55,0.74368147]
[1746805663588,0.26586683,634.42,633.55,0.74368147]
[1746805663891,0.26586683,634.41,633.55,0.74368147]
[1746805664182,0.26586683,634.4,633.55,0.74368147]
[1746805664387,0.64086683,634.4,633.55,0.74368147]
[1746805664587,0.26586683,634.39,633.55,0.74368147]
[1746805664789,0.54045879,634.39,633.55,0.74368147]
[1746805664988,0.26586683,634.38,633.55,0.74368147]
[1746805665288,0.26586683,634.37,633.55,0.74368147]
[1746805665790,0.26586683,634.36,633.55,0.74368147]
[1746805666388,0.26586683,634.35,633.55,0.74368147]
[1746805666688,0.26586683,634.38,633.55,0.74368147]
[1746805666889,0.27459196,634.39,633.55,0.74368147]
[1746805667287,0.26559612,634.38,633.55,0.74368147]
[1746805667684,0.503,634.37,633.55,0.74368147]
[1746805668091,0.26559612,634.36,633.55,0.74368147]
[1746805669991,0.503,634.37,633.55,0.74368147]
[1746805670291,0.26559398,634.36,633.55,0.74368147]
[1746805670890,0.27458546,634.35,633.55,0.74368147]
[1746805671091,0.26559398,634.34,633.55,0.74368147]
[1746805672893,0.26559398,634.33,633.55,0.74368147]
[1746805673194,0.26559398,634.32,633.55,0.74368147]
[1746805673494,0.26559398,634.31,633.55,0.74368147]
[1746805673895,0.26559398,634.3,633.55,0.74368147]
[1746805674091,0.26559398,634.29,633.55,0.74368147]
[1746805674393,0.26559398,634.28,633.55,0.74368147]
[1746805674793,0.26559398,634.27,633.55,0.74368147]
[1746805675197,0.26559398,634.26,633.55,0.74368147]
[1746805675500,0.26559398,634.25,633.55,0.74368147]
[1746805675998,0.26559398,634.24,633.55,0.74368147]
[1746805676198,0.26559398,634.23,633.55,0.74368147]
[1746805676397,0.26559398,634.22,633.55,0.74368147]
[1746805676799,0.26559398,634.21,633.55,0.74368147]
[1746805676998,0.54020327,634.21,633.55,0.74368147]
[1746805677201,0.26559398,634.2,633.55,0.74368147]
[1746805677501,0.27460929,634.21,633.55,0.74368147]
[1746805677701,0.26591288,634.19,633.55,0.74368147]
[1746805677999,0.26591288,634.18,633.55,0.74368147]
[1746805678499,0.26591288,634.17,633.55,0.74368147]
[1746805678696,0.26591288,634.16,633.55,0.74368147]
[1746805679004,0.26591288,634.15,633.55,0.74368147]
[1746805679301,0.26591288,634.2,633.55,0.74368147]
[1746805679897,0.27457896,634.19,633.55,0.74368147]
[1746805680296,0.26591288,634.18,633.55,0.74368147]
[1746805683507,0.27451831,634.23,633.55,0.74368147]
[1746805683907,0.26591288,634.22,633.55,0.74368147]
[1746805686106,0.27451831,634.23,633.55,0.74368147]
[1746805686304,0.26591288,634.22,633.55,0.74368147]
[1746805686707,0.503,634.37,633.55,0.74368147]
[1746805686708,0.27449233,634.35,633.55,0.74368147]
[1746805686907,0.26616878,634.34,633.55,0.74368147]
[1746805690405,0.375,634.33,633.55,0.74368147]
[1746805691208,0.26616878,634.32,633.55,0.74368147]
[1746805693906,1.13116878,634.32,633.55,0.74368147]
[1746805694104,0.26616878,634.31,633.55,0.74368147]
[1746805695511,0.865,634.32,633.55,0.74368147]
[1746805695814,0.26618627,634.31,633.55,0.74368147]
[1746805701014,0.27452806,634.3,633.55,0.74368147]
[1746805701417,0.26614806,634.29,633.55,0.74368147]
[1746805704117,0.27452806,634.3,633.55,0.74368147]
[1746805704417,0.26617492,634.29,633.55,0.74368147]
[1746805706819,0.27460279,634.28,633.55,0.74368147]
[1746805707420,0.26617492,634.27,633.55,0.74368147]
[1746805709917,0.2746223,634.26,633.55,0.74368147]
[1746805710117,0.26617492,634.25,633.55,0.74368147]
[1746805710617,0.806,634.24,633.55,0.74368147]
[1746805710822,0.26617492,634.23,633.55,0.74368147]
[1746805716023,0.64957354,634.22,633.55,0.74368147]
[1746805716423,0.26617492,634.21,633.55,0.74368147]
[1746805719224,0.54071381,634.21,633.55,0.74368147]
[1746805719523,0.26617492,634.2,633.55,0.74368147]
[1746805721925,0.27456921,634.19,633.55,0.74368147]
[1746805722228,0.26617492,634.18,633.55,0.74368147]
[1746805724834,0.27458004,634.17,633.55,0.74368147]
[1746805725236,1.00917492,634.16,633.55,0.74368147]
[1746805725537,0.26617492,634.15,633.55,0.74368147]
[1746805727834,0.27459629,634.14,633.55,0.74368147]
[1746805728236,0.26617492,634.13,633.55,0.74368147]
[1746805730941,0.27462771,634.12,633.55,0.74368147]
[1746805731238,0.26617492,634.11,633.55,0.74368147]
[1746805733936,0.27465156,634.1,633.55,0.74368147]
[1746805734441,0.26617492,634.09,633.55,0.74368147]
[1746805735743,0.26617492,634.09,633.55,0.31568147]
[1746805736844,0.27487935,634.08,633.55,0.31568147]
[1746805737443,0.26617492,634.07,633.55,0.31568147]
[1746805738743,0.26617492,634.07,633.55,1.03368147]
[1746805739841,0.2746418,634.06,633.55,1.03368147]
[1746805740347,0.26617492,634.05,633.55,1.03368147]
[1746805745949,0.2746418,634.06,633.55,1.03368147]
[1746805746245,0.26512338,634.05,633.55,1.03368147]
[1746805751851,0.27470901,634.04,633.55,1.03368147]
[1746805752444,0.26512338,634.03,633.55,1.03368147]
[1746805754360,0.26512338,634.02,633.55,1.03368147]
[1746805754860,0.26512338,634.01,633.55,1.03368147]
[1746805755358,0.26512338,634.0,633.55,1.03368147]
[1746805755555,0.27470901,634.04,633.55,1.03368147]
[1746805756056,0.26529719,634.03,633.55,1.03368147]
[1746805756255,0.27470901,634.04,633.55,0.31568147]
[1746805756660,0.26529366,634.03,633.55,0.31568147]
[1746805756958,0.26529366,634.02,633.55,0.31568147]
[1746805757456,0.26529366,634.01,633.55,0.31568147]
[1746805757758,0.26529366,634.0,633.55,0.31568147]
[1746805757955,0.54031964,634.0,633.55,0.31568147]
[1746805758760,0.26529366,633.99,633.55,0.31568147]
[1746805759061,0.26529366,633.98,633.55,0.31568147]
[1746805759361,0.26529366,633.97,633.55,0.31568147]
[1746805759860,0.26529366,633.96,633.55,0.31568147]
[1746805760159,0.26529366,633.95,633.55,0.31568147]
[1746805760560,0.26529366,633.99,633.55,0.31568147]
[1746805760859,0.27479035,633.94,633.55,0.31568147]
[1746805762055,0.26529366,633.93,633.55,0.31568147]
[1746805765064,0.27479035,633.94,633.55,0.31568147]
[1746805765463,0.2651908,633.93,633.55,0.31568147]
[1746805766866,0.27471226,633.92,633.55,0.31568147]
[1746805767364,0.2651908,633.91,633.55,0.31568147]
[1746805769768,0.27471226,633.92,633.55,0.31568147]
[1746805770067,0.265186,633.91,633.55,0.31568147]
[1746805772964,0.27471009,633.9,633.55,0.31568147]
[1746805773371,0.265186,633.89,633.55,0.31568147]
[1746805776070,0.27474046,633.88,633.55,0.31568147]
[1746805776566,0.265186,633.87,633.55,0.31568147]
[1746805778875,0.27483484,633.86,633.55,0.31568147]
[1746805779176,0.265186,633.85,633.55,0.31568147]
[1746805781875,0.27483918,633.84,633.55,0.31568147]
[1746805782578,0.265186,633.83,633.55,0.31568147]
[1746805784978,0.27479686,633.82,633.55,0.31568147]
[1746805785478,0.265186,633.81,633.55,0.31568147]
[1746805793588,1.99913276,634.39,633.55,0.31568147]
[1746805793888,0.27475564,633.8,633.55,0.31568147]
[1746805794187,0.26556541,634.38,633.55,0.31568147]
[1746805794489,0.54033081,633.79,633.55,0.31568147]
[1746805794690,0.26556541,634.37,632.51,0.677]
[1746805794990,0.27473287,633.78,632.51,0.677]
[1746805795194,0.27473287,633.78,632.52,0.27473287]
[1746805795389,0.26556541,633.77,632.52,0.27473287]
[1746805795593,0.26556541,634.68,632.52,0.27473287]
[1746805796093,0.26556541,634.67,632.52,0.27473287]
[1746805796286,0.26556541,634.66,632.52,0.27473287]
[1746805796591,0.26556541,634.65,632.51,0.677]
[1746805796793,1.99913276,634.57,632.51,0.677]
[1746805796992,1.99913276,634.57,632.52,0.27471335]
[1746805797393,0.26556541,634.56,632.52,0.27471335]
[1746805797693,0.26556541,634.55,632.52,0.27471335]
[1746805797995,0.26556541,634.54,632.52,0.27471335]
[1746805798395,0.26556541,634.53,632.52,0.27471335]
[1746805798797,0.26556541,634.52,632.52,0.27471335]
[1746805799095,0.26556541,634.51,632.52,0.27471335]
[1746805799488,0.26556541,634.5,632.53,0.29026449]
[1746805799890,0.26556541,634.49,632.53,0.29026449]
[1746805800095,0.26556541,634.48,632.53,0.29026449]
[1746805800491,0.26556541,634.47,632.53,0.29026449]
[1746805800795,0.26556541,634.46,632.53,0.29026449]
[1746805801496,0.26556541,634.45,632.53,0.29026449]
[1746805801897,0.26556541,634.49,632.52,0.27469058]
[1746805802501,0.26556541,634.49,632.53,0.29011287]
[1746805802894,0.26556541,634.49,632.51,0.677]
[1746805802895,1.99913276,634.54,632.52,0.27460604]
[1746805803095,0.26568338,634.53,632.53,0.29010279]
[1746805803399,0.26568338,634.52,632.54,0.29010279]
[1746805803898,0.27460929,634.51,632.53,0.29010279]
[1746805804100,0.27460929,634.51,632.55,0.31618053]
[1746805804300,0.26568338,634.5,632.55,0.31618053]
[1746805804600,0.26568338,634.5,632.56,0.29010279]
[1746805808902,0.27457029,634.49,632.56,0.29010279]
[1746805809203,0.26568338,634.48,632.56,0.29010279]
[1746805810805,0.26568338,634.48,632.57,0.29010279]
[1746805811002,0.26568338,634.48,632.58,0.29010279]
[1746805811208,1.197,634.91,632.59,0.29010279]
[1746805811507,0.27448691,634.62,632.6,0.29010279]
[1746805811706,0.26580911,634.61,632.61,0.29010279]
[1746805811906,0.26580911,634.9,632.62,0.29010279]
[1746805812205,0.26580911,634.9,632.63,0.29010279]
[1746805812505,0.26580911,634.9,632.64,0.29010279]
[1746805812706,0.26580911,634.9,632.65,0.29010279]
[1746805812907,0.27446418,634.89,632.59,0.27446418]
[1746805813107,0.27446418,634.89,632.6,0.29010279]
[1746805816511,0.474,634.88,632.6,0.29010279]
[1746805817306,0.474,634.88,632.59,0.27446418]
[1746805817511,0.474,634.88,632.6,0.2898144]
[1746805819705,0.26579548,634.87,632.61,0.2898144]
[1746805819908,0.26579548,634.87,632.62,0.2898144]
[1746805820110,0.26579548,634.87,632.63,0.2898144]
[1746805820313,0.26579548,634.87,632.64,0.2898144]
[1746805820612,0.26579548,634.87,632.65,0.2898144]
[1746805820813,0.26579548,634.87,632.66,0.2898144]
[1746805821013,0.27447176,634.86,632.67,0.2898144]
[1746805821211,0.26579548,634.85,632.68,0.2898144]
[1746805821410,0.26579548,634.85,632.69,0.2898144]
[1746805821610,0.26579548,634.85,632.7,0.2898144]
[1746805821914,0.26579548,634.85,632.71,0.2898144]
[1746805822114,0.26579548,634.85,632.72,0.2898144]
[1746805822416,0.385,634.84,632.73,0.2898144]
[1746805822712,0.26579548,634.83,632.74,0.2898144]
[1746805823016,0.26579548,634.83,632.75,0.2898144]
[1746805823317,0.26579548,634.83,632.76,0.2898144]
[1746805823511,0.26579548,634.83,632.77,0.2898144]
[1746805823714,0.26579548,634.83,632.78,0.2898144]
[1746805823917,0.27449124,634.82,632.79,0.2898144]
[1746805824218,0.26579548,634.81,632.8,0.2898144]
[1746805824415,0.26579548,634.81,632.81,0.2898144]
[1746805824615,0.26579548,634.81,632.82,0.2898144]
[1746805824815,0.26579548,634.81,632.83,0.2898144]
[1746805825015,0.26579548,634.81,632.84,0.2898144]
[1746805825213,0.26579548,634.81,632.85,0.2898144]
[1746805825414,0.26579548,634.81,632.86,0.2898144]
[1746805825616,0.26579548,634.81,632.87,0.2898144]
[1746805825815,0.27449124,634.82,632.67,0.27449124]
[1746805826613,0.385,634.84,632.55,0.31618053]
[1746805826914,0.2745129,634.81,632.67,0.2745129]
[1746805827113,0.2745129,634.81,632.55,0.31618053]
[1746805829019,0.2745129,634.81,632.56,0.27451831]
[1746805829622,0.385,634.84,632.55,0.31618053]
[1746805829919,0.385,634.84,632.56,0.2745129]
[1746805830920,0.27450857,634.83,632.56,0.2745129]
[1746805832618,0.385,634.84,632.55,0.31618053]
[1746805833126,0.27461254,634.83,632.56,0.27461254]
[1746805833427,0.27461254,634.83,632.67,0.31612056]
[1746805833927,0.27461254,634.83,632.67,1.01012056]
[1746805839923,0.65961254,634.83,632.67,1.01012056]
[1746805841530,1.10961254,634.83,632.67,1.01012056]
[1746805844630,0.835,634.83,632.67,1.01012056]
[1746805845129,0.27445985,634.82,632.67,1.01012056]
[1746805848726,0.27445985,634.82,632.68,0.2898549]
[1746805848932,0.26556406,634.81,632.68,0.2898549]
[1746805849633,0.26556406,634.81,632.69,0.2898549]
[1746805849933,0.26556406,634.81,632.7,0.2898549]
[1746805850133,0.26556406,634.81,632.71,0.2898549]
[1746805850429,0.27445985,634.82,632.67,1.01012056]
[1746805850635,0.26554586,634.81,632.68,0.2898404]
[1746805850835,0.26554586,634.82,632.69,0.2898404]
[1746805851036,0.26554586,634.8,632.69,0.2898404]
[1746805851229,0.54000571,634.81,632.7,0.2898404]
[1746805851529,0.26554586,634.8,632.71,0.2898404]
[1746805851735,0.26554586,634.8,632.72,0.2898404]
[1746805851936,0.26554586,634.8,632.73,0.2898404]
[1746805852136,0.26554586,634.8,632.74,0.2898404]
[1746805852336,0.26554586,634.8,632.75,0.2898404]
[1746805852537,0.26554586,634.8,632.76,0.2898404]
[1746805852734,0.26554586,634.8,632.86,0.31602566]
[1746805852940,0.26554586,634.8,632.87,0.2898404]
[1746805853938,0.26554586,634.82,632.87,0.2898404]
[1746805854339,0.27445011,634.79,632.87,0.2898404]
[1746805854536,0.26554586,634.78,632.87,0.2898404]
[1746805854736,0.26554586,634.78,632.88,0.456]
[1746805855039,0.26554586,634.78,632.89,0.2898404]
[1746805856841,0.26554586,634.82,632.89,0.2898404]
[1746805857148,0.27444795,634.77,632.89,0.2898404]
[1746805857344,0.26554586,634.76,632.89,0.2898404]
[1746805858146,0.27444795,634.77,632.88,0.456]
[1746805858947,0.27444795,634.77,632.9,0.31600568]
[1746805859245,0.26561584,634.76,632.9,0.31600568]
[1746805859445,0.26561584,634.76,632.91,0.2898678]
[1746805859943,0.27444579,634.75,632.91,0.2898678]
[1746805860245,0.26561584,634.74,632.92,0.2898678]
[1746805860446,0.26561584,634.74,632.93,0.2898678]
[1746805860641,0.26561584,634.74,632.94,0.2898678]
[1746805861045,0.26561584,634.74,632.95,0.2898678]
[1746805861843,0.26561584,634.74,632.96,0.2898678]
[1746805862045,0.26561584,634.74,632.97,0.2898678]
[1746805862245,0.26561584,634.74,632.98,0.2898678]
[1746805862446,0.26561584,634.74,632.99,0.2898678]
[1746805862647,0.26561584,634.74,633.0,0.2898678]
[1746805862948,0.2744209,634.8,633.01,0.2898678]
[1746805863140,0.2744209,634.8,632.92,0.2898678]
[1746805863346,0.26561584,634.79,632.92,0.2898678]
[1746805863751,0.26561584,634.82,632.92,0.2898678]
[1746805864149,0.835,634.83,632.92,0.2898678]
[1746805864649,0.26563932,634.82,632.92,0.2898678]
[1746805864950,0.385,634.83,632.91,0.2744209]
[1746805865249,0.265643,634.82,632.92,0.28977739]
[1746805865846,0.385,634.83,632.92,0.28977739]
[1746805866246,0.385,634.83,632.93,0.28977739]
[1746805866450,0.26573905,634.82,632.93,0.28977739]
[1746805866651,0.385,634.83,632.94,0.28977739]
[1746805867051,0.385,634.83,632.95,0.28977739]
[1746805867246,0.385,634.83,632.96,0.28977739]
[1746805867746,0.385,634.83,632.97,0.28977739]
[1746805867952,1.033,634.83,632.97,0.28977739]
[1746805868252,1.033,634.83,632.92,0.28977739]
[1746805868449,1.033,634.83,632.98,0.28977739]
[1746805869251,1.033,634.83,632.99,0.28977739]
[1746805869551,1.033,634.83,633.0,0.28969293]
[1746805869953,1.033,634.83,632.95,0.28969293]
[1746805870351,1.033,634.83,632.96,0.28969293]
[1746805870652,1.033,634.83,632.94,0.27436897]
[1746805870853,1.033,634.83,632.97,0.28967592]
[1746805871052,1.033,634.83,632.95,0.28967592]
[1746805871451,1.033,634.83,632.96,0.28967592]
[1746805871948,1.033,634.83,632.97,0.28967592]
[1746805872454,1.033,634.83,632.98,0.28967592]
[1746805872752,1.033,634.83,632.99,0.28967592]
[1746805873154,1.033,634.83,633.0,0.28967592]
[1746805873350,1.033,634.83,633.01,0.28967592]
[1746805873954,1.033,634.83,633.02,0.28967592]
[1746805874154,1.033,634.83,632.94,0.27436897]
[1746805874350,0.26559188,634.82,632.95,0.28973574]
[1746805874651,0.26559188,634.82,632.96,0.28973574]
[1746805875058,0.26559188,634.82,632.97,0.28973574]
[1746805875250,0.648,634.83,632.94,0.27436897]
[1746805875452,0.26554498,634.81,632.98,0.28973912]
[1746805875655,0.26554498,634.82,632.99,0.28973912]
[1746805876051,0.26554498,634.82,633.0,0.28973912]
[1746805876557,0.26554498,634.82,633.01,0.28973912]
[1746805876757,0.26554498,634.82,633.02,0.28973912]
[1746805877059,0.26554498,634.82,633.03,0.28973912]
[1746805877258,0.26554498,634.82,633.04,0.28973912]
[1746805878162,0.26554498,634.82,633.05,0.28973912]
[1746805878466,0.26554498,634.82,633.06,0.28973912]
[1746805878667,0.65054498,634.82,633.07,0.28973912]
[1746805878867,0.26554498,634.81,633.08,0.28973912]
[1746805879062,0.26554498,634.81,633.09,0.28973912]
[1746805879369,0.26554498,634.81,633.1,0.28973912]
[1746805879569,0.26554498,634.81,633.11,0.28973912]
[1746805879965,0.26554498,634.81,633.12,0.28973912]
[1746805880468,0.26554498,634.81,633.13,0.28973912]
[1746805880666,0.26554498,634.81,633.14,0.28973912]
[1746805881068,0.26554498,634.81,633.15,0.28973912]
[1746805881469,0.26554498,634.81,633.16,0.28973912]
[1746805881669,0.26554498,634.81,632.99,0.28973912]
[1746805881969,0.26554498,634.81,633.0,0.28973912]
[1746805882169,0.26554498,634.81,633.01,0.28973912]
[1746805882365,0.385,634.82,633.02,0.28973912]
[1746805882569,0.385,634.82,633.03,0.28973912]
[1746805882971,0.385,634.82,632.99,0.28973912]
[1746805883271,0.385,634.82,633.0,0.28973912]
[1746805883465,0.385,634.82,632.98,0.27437546]
[1746805883466,0.385,634.82,633.01,0.28973912]
[1746805883776,0.385,634.82,633.02,0.28973912]
[1746805883968,0.385,634.82,632.99,0.2743614]
[1746805884369,0.385,634.82,633.0,0.28970285]
[1746805885067,0.385,634.82,633.01,0.28970285]
[1746805885271,0.385,634.82,633.02,0.28970285]
[1746805885568,0.385,634.82,633.03,0.28970285]